Workbook

Sheet 世帯情報入力用
A1: 保険料試算
A2: =IF(A4>0,"","年度を選択して下さい↓") -> 
A3: 年度 | B3: 世帯主 | F3: 世帯員1 | J3: 世帯員2 | N3: 世帯員3 | R3: 世帯員4
A4: 8
A5: 4/1時点の年齢にチェック | C5: 子ども該当 | D5: TRUE | G5: 子ども該当 | H5: TRUE | K5: 子ども該当 | L5: TRUE | O5: 子ども該当 | P5: TRUE | S5: 子ども該当 | T5: TRUE
C6: 未就学児 | D6: FALSE | G6: 未就学児 | H6: FALSE | K6: 未就学児 | L6: FALSE | O6: 未就学児 | P6: FALSE | S6: 未就学児 | T6: FALSE
A7: ※18歳未満（平成２０年４月２日以降生まれ）の方は、子ども支援該当のチェックをはずしてください。 ※６歳未満は令和２年４月２日以降生まれの方です。 | C7: 子ども非該当 | D7: FALSE | G7: 子ども非該当 | H7: FALSE | K7: 子ども非該当 | L7: FALSE | O7: 子ども非該当 | P7: FALSE | S7: 子ども非該当 | T7: FALSE
C8: 介護非該当 | D8: FALSE | G8: 介護非該当 | H8: FALSE | K8: 介護非該当 | L8: FALSE | O8: 介護非該当 | P8: FALSE | S8: 介護非該当 | T8: FALSE
C9: 介護該当 | D9: FALSE | G9: 介護該当 | H9: FALSE | K9: 介護該当 | L9: FALSE | O9: 介護該当 | P9: FALSE | S9: 介護該当 | T9: FALSE
A10: ※年度途中で年齢区分が 変わる方は、試算結果も 異なる場合がございます。 | C10: 65歳以上 | D10: FALSE | G10: 65歳以上 | H10: FALSE | K10: 65歳以上 | L10: FALSE | O10: 65歳以上 | P10: FALSE | S10: 65歳以上 | T10: FALSE
B11: 収入金額 | C11: 給与所得者等 | D11: =IF(OR(D17>0,(E14-D14)>0),1,0) -> 0 | E11: 所得金額 | F11: 収入金額 | G11: 給与所得者等 | H11: =IF(OR(H17>0,(I14-H14)>0),1,0) -> 0 | I11: 所得金額 | J11: 収入金額 | K11: 給与所得者等 | L11: =IF(OR(L17>0,(M14-L14)>0),1,0) -> 0 | M11: 所得金額 | N11: 収入金額 | O11: 給与所得者等 | P11: =IF(OR(P17>0,(Q14-P14)>0),1,0) -> 0 | Q11: 所得金額 | R11: 収入金額 | S11: 給与所得者等 | T11: =IF(OR(T17>0,(U14-T14)>0),1,0) -> 0 | U11: 所得金額
A12: 給与収入 | C12: 給与所得(専給含む) | D12: =IF(D18=TRUE,0.3*(IF(B12+B13<651000,0,IF(B12+B13<1900000,B12+B13-650000,IF(B12+B13<3600000,INT(INT((B12+B13)/4000)*4000*0.7)-80000,IF(B12+B13<6600000,INT(INT((B12+B13)/4000)*4000*0.8)-440000,IF(B12+B13<8500000,INT((B12+B13)*0.9)-1100000,B12+B13-1950000)))))),IF(B12+B13<651000,0,IF(B12+B13<1900000,B12+B13-650000,IF(B12+B13<3600000,INT(INT((B12+B13)/4000)*4000*0.7)-80000,IF(B12+B13<6600000,INT(INT((B12+B13)/4000)*4000*0.8)-440000,IF(B12+B13<8500000,INT((B12+B13)*0.9)-1100000,B12+B13-1950000)))))) -> 0 | E12: =D12-D15 -> 0 | G12: 給与所得(専給含む) | H12: =IF(H18=TRUE,0.3*(IF(F12+F13<651000,0,IF(F12+F13<1900000,F12+F13-650000,IF(F12+F13<3600000,INT(INT((F12+F13)/4000)*4000*0.7)-80000,IF(F12+F13<6600000,INT(INT((F12+F13)/4000)*4000*0.8)-440000,IF(F12+F13<8500000,INT((F12+F13)*0.9)-1100000,F12+F13-1950000)))))),IF(F12+F13<651000,0,IF(F12+F13<1900000,F12+F13-650000,IF(F12+F13<3600000,INT(INT((F12+F13)/4000)*4000*0.7)-80000,IF(F12+F13<6600000,INT(INT((F12+F13)/4000)*4000*0.8)-440000,IF(F12+F13<8500000,INT((F12+F13)*0.9)-1100000,F12+F13-1950000)))))) -> 0 | I12: =H12-H15 -> 0 | K12: 給与所得(専給含む) | L12: =IF(L18=TRUE,0.3*(IF(J12+J13<651000,0,IF(J12+J13<1900000,J12+J13-650000,IF(J12+J13<3600000,INT(INT((J12+J13)/4000)*4000*0.7)-80000,IF(J12+J13<6600000,INT(INT((J12+J13)/4000)*4000*0.8)-440000,IF(J12+J13<8500000,INT((J12+J13)*0.9)-1100000,J12+J13-1950000)))))),IF(J12+J13<651000,0,IF(J12+J13<1900000,J12+J13-650000,IF(J12+J13<3600000,INT(INT((J12+J13)/4000)*4000*0.7)-80000,IF(J12+J13<6600000,INT(INT((J12+J13)/4000)*4000*0.8)-440000,IF(J12+J13<8500000,INT((J12+J13)*0.9)-1100000,J12+J13-1950000)))))) -> 0 | M12: =L12-L15 -> 0 | O12: 給与所得(専給含む) | P12: =IF(P18=TRUE,0.3*(IF(N12+N13<651000,0,IF(N12+N13<1900000,N12+N13-650000,IF(N12+N13<3600000,INT(INT((N12+N13)/4000)*4000*0.7)-80000,IF(N12+N13<6600000,INT(INT((N12+N13)/4000)*4000*0.8)-440000,IF(N12+N13<8500000,INT((N12+N13)*0.9)-1100000,N12+N13-1950000)))))),IF(N12+N13<651000,0,IF(N12+N13<1900000,N12+N13-650000,IF(N12+N13<3600000,INT(INT((N12+N13)/4000)*4000*0.7)-80000,IF(N12+N13<6600000,INT(INT((N12+N13)/4000)*4000*0.8)-440000,IF(N12+N13<8500000,INT((N12+N13)*0.9)-1100000,N12+N13-1950000)))))) -> 0 | Q12: =P12-P15 -> 0 | S12: 給与所得(専給含む) | T12: =IF(T18=TRUE,0.3*(IF(R12+R13<651000,0,IF(R12+R13<1900000,R12+R13-650000,IF(R12+R13<3600000,INT(INT((R12+R13)/4000)*4000*0.7)-80000,IF(R12+R13<6600000,INT(INT((R12+R13)/4000)*4000*0.8)-440000,IF(R12+R13<8500000,INT((R12+R13)*0.9)-1100000,R12+R13-1950000)))))),IF(R12+R13<651000,0,IF(R12+R13<1900000,R12+R13-650000,IF(R12+R13<3600000,INT(INT((R12+R13)/4000)*4000*0.7)-80000,IF(R12+R13<6600000,INT(INT((R12+R13)/4000)*4000*0.8)-440000,IF(R12+R13<8500000,INT((R12+R13)*0.9)-1100000,R12+R13-1950000)))))) -> 0 | U12: =T12-T15 -> 0
A13: 専従給与 | C13: 軽判給与所得 | D13: =IF(D18=TRUE,0.3*(IF(B12<651000,0,IF(B12<1900000,B12-650000,IF(B12<3600000,INT((INT(B12/4000)*4000)*0.7)-80000,IF(B12<6600000,INT((INT(B12/4000)*4000)*0.8)-440000,IF(B12<8500000,INT(B12*0.9)-1100000,B12-1950000)))))),IF(B12<651000,0,IF(B12<1900000,B12-650000,IF(B12<3600000,INT((INT(B12/4000)*4000)*0.7)-80000,IF(B12<6600000,INT((INT(B12/4000)*4000)*0.8)-440000,IF(B12<8500000,INT(B12*0.9)-1100000,B12-1950000)))))) -> 0 | G13: 軽判給与所得 | H13: =IF(H18=TRUE,0.3*(IF(F12<651000,0,IF(F12<1900000,F12-650000,IF(F12<3600000,INT((INT(F12/4000)*4000)*0.7)-80000,IF(F12<6600000,INT((INT(F12/4000)*4000)*0.8)-440000,IF(F12<8500000,INT(F12*0.9)-1100000,F12-1950000)))))),IF(F12<651000,0,IF(F12<1900000,F12-650000,IF(F12<3600000,INT((INT(F12/4000)*4000)*0.7)-80000,IF(F12<6600000,INT((INT(F12/4000)*4000)*0.8)-440000,IF(F12<8500000,INT(F12*0.9)-1100000,F12-1950000)))))) -> 0 | K13: 軽判給与所得 | L13: =IF(L18=TRUE,0.3*(IF(J12<651000,0,IF(J12<1900000,J12-650000,IF(J12<3600000,INT((INT(J12/4000)*4000)*0.7)-80000,IF(J12<6600000,INT((INT(J12/4000)*4000)*0.8)-440000,IF(J12<8500000,INT(J12*0.9)-1100000,J12-1950000)))))),IF(J12<651000,0,IF(J12<1900000,J12-650000,IF(J12<3600000,INT((INT(J12/4000)*4000)*0.7)-80000,IF(J12<6600000,INT((INT(J12/4000)*4000)*0.8)-440000,IF(J12<8500000,INT(J12*0.9)-1100000,J12-1950000)))))) -> 0 | O13: 軽判給与所得 | P13: =IF(P18=TRUE,0.3*(IF(N12<651000,0,IF(N12<1900000,N12-650000,IF(N12<3600000,INT((INT(N12/4000)*4000)*0.7)-80000,IF(N12<6600000,INT((INT(N12/4000)*4000)*0.8)-440000,IF(N12<8500000,INT(N12*0.9)-1100000,N12-1950000)))))),IF(N12<651000,0,IF(N12<1900000,N12-650000,IF(N12<3600000,INT((INT(N12/4000)*4000)*0.7)-80000,IF(N12<6600000,INT((INT(N12/4000)*4000)*0.8)-440000,IF(N12<8500000,INT(N12*0.9)-1100000,N12-1950000)))))) -> 0 | S13: 軽判給与所得 | T13: =IF(T18=TRUE,0.3*(IF(R12<651000,0,IF(R12<1900000,R12-650000,IF(R12<3600000,INT((INT(R12/4000)*4000)*0.7)-80000,IF(R12<6600000,INT((INT(R12/4000)*4000)*0.8)-440000,IF(R12<8500000,INT(R12*0.9)-1100000,R12-1950000)))))),IF(R12<651000,0,IF(R12<1900000,R12-650000,IF(R12<3600000,INT((INT(R12/4000)*4000)*0.7)-80000,IF(R12<6600000,INT((INT(R12/4000)*4000)*0.8)-440000,IF(R12<8500000,INT(R12*0.9)-1100000,R12-1950000)))))) -> 0
A14: 年金収入 | C14: 年金１５万円控除 | D14: =IF(B14="",0,IF(D10=TRUE,IF(E14>=150000,150000,E14),0)) -> 0 | E14: =IF(OR(AND(D8=TRUE,D9=TRUE,D10=TRUE,B14>0),AND(D8=FALSE,D9=FALSE,D10=FALSE,B14>0)),"年齢不適切",ROUNDDOWN(IF(D10=TRUE,(IF(B14<1100000,0,IF(B14<=3300000,B14-1100000,IF(B14<=4100000,(B14*0.75)-275000,IF(B14<=7700000,(B14*0.85)-685000,IF(B14<=10000000,(B14*0.95)-1455000,B14-1955000)))))),(IF(B14<600000,0,IF(B14<=1300000,B14-600000,IF(B14<=4100000,(B14*0.75)-275000,IF(B14<=7700000,(B14*0.85)-685000,IF(B14<=10000000,(B14*0.95)-1455000,B14-1955000))))))),0)) -> 0 | G14: 年金１５万円控除 | H14: =IF(F14="",0,IF(H10=TRUE,IF(I14>=150000,150000,I14),0)) -> 0 | I14: =IF(OR(AND(H8=TRUE,H9=TRUE,H10=TRUE,F14>0),AND(H8=FALSE,H9=FALSE,H10=FALSE,F14>0)),"年齢不適切",ROUNDDOWN(IF(H10=TRUE,(IF(F14<1100000,0,IF(F14<=3300000,F14-1100000,IF(F14<=4100000,(F14*0.75)-275000,IF(F14<=7700000,(F14*0.85)-685000,IF(F14<=10000000,(F14*0.95)-1455000,F14-1955000)))))),(IF(F14<600000,0,IF(F14<=1300000,F14-600000,IF(F14<=4100000,(F14*0.75)-275000,IF(F14<=7700000,(F14*0.85)-685000,IF(F14<=10000000,(F14*0.95)-1455000,F14-1955000))))))),0)) -> 0 | K14: 年金１５万円控除 | L14: =IF(J14="",0,IF(L10=TRUE,IF(M14>=150000,150000,M14),0)) -> 0 | M14: =IF(OR(AND(L8=TRUE,L9=TRUE,L10=TRUE,J14>0),AND(L8=FALSE,L9=FALSE,L10=FALSE,J14>0)),"年齢不適切",ROUNDDOWN(IF(L10=TRUE,(IF(J14<1100000,0,IF(J14<=3300000,J14-1100000,IF(J14<=4100000,(J14*0.75)-275000,IF(J14<=7700000,(J14*0.85)-685000,IF(J14<=10000000,(J14*0.95)-1455000,J14-1955000)))))),(IF(J14<600000,0,IF(J14<=1300000,J14-600000,IF(J14<=4100000,(J14*0.75)-275000,IF(J14<=7700000,(J14*0.85)-685000,IF(J14<=10000000,(J14*0.95)-1455000,J14-1955000))))))),0)) -> 0 | O14: 年金１５万円控除 | P14: =IF(N14="",0,IF(P10=TRUE,IF(Q14>=150000,150000,Q14),0)) -> 0 | Q14: =IF(OR(AND(P8=TRUE,P9=TRUE,P10=TRUE,N14>0),AND(P8=FALSE,P9=FALSE,P10=FALSE,N14>0)),"年齢不適切",ROUNDDOWN(IF(P10=TRUE,(IF(N14<1100000,0,IF(N14<=3300000,N14-1100000,IF(N14<=4100000,(N14*0.75)-275000,IF(N14<=7700000,(N14*0.85)-685000,IF(N14<=10000000,(N14*0.95)-1455000,N14-1955000)))))),(IF(N14<600000,0,IF(N14<=1300000,N14-600000,IF(N14<=4100000,(N14*0.75)-275000,IF(N14<=7700000,(N14*0.85)-685000,IF(N14<=10000000,(N14*0.95)-1455000,N14-1955000))))))),0)) -> 0 | S14: 年金１５万円控除 | T14: =IF(R14="",0,IF(T10=TRUE,IF(U14>=150000,150000,U14),0)) -> 0 | U14: =IF(OR(AND(T8=TRUE,T9=TRUE,T10=TRUE,R14>0),AND(T8=FALSE,T9=FALSE,T10=FALSE,R14>0)),"年齢不適切",ROUNDDOWN(IF(T10=TRUE,(IF(R14<1100000,0,IF(R14<=3300000,R14-1100000,IF(R14<=4100000,(R14*0.75)-275000,IF(R14<=7700000,(R14*0.85)-685000,IF(R14<=10000000,(R14*0.95)-1455000,R14-1955000)))))),(IF(R14<600000,0,IF(R14<=1300000,R14-600000,IF(R14<=4100000,(R14*0.75)-275000,IF(R14<=7700000,(R14*0.85)-685000,IF(R14<=10000000,(R14*0.95)-1455000,R14-1955000))))))),0)) -> 0
A15: 営業所得 | C15: 給与調整控除 | D15: =IF((IF(D12>=100000,100000,D12)+IF(E14>=100000,100000,E14)-100000)<0,0,IF(D12>=100000,100000,D12)+IF(E14>=100000,100000,E14)-100000) -> 0 | G15: 給与調整控除 | H15: =IF((IF(H12>=100000,100000,H12)+IF(I14>=100000,100000,I14)-100000)<0,0,IF(H12>=100000,100000,H12)+IF(I14>=100000,100000,I14)-100000) -> 0 | K15: 給与調整控除 | L15: =IF((IF(L12>=100000,100000,L12)+IF(M14>=100000,100000,M14)-100000)<0,0,IF(L12>=100000,100000,L12)+IF(M14>=100000,100000,M14)-100000) -> 0 | O15: 給与調整控除 | P15: =IF((IF(P12>=100000,100000,P12)+IF(Q14>=100000,100000,Q14)-100000)<0,0,IF(P12>=100000,100000,P12)+IF(Q14>=100000,100000,Q14)-100000) -> 0 | S15: 給与調整控除 | T15: =IF((IF(T12>=100000,100000,T12)+IF(U14>=100000,100000,U14)-100000)<0,0,IF(T12>=100000,100000,T12)+IF(U14>=100000,100000,U14)-100000) -> 0
A16: 不動産所得 | C16: 軽判給与調整控除 | D16: =IF((IF(D13>=100000,100000,D13)+IF(E14-D14>=100000,100000,E14-D14)-100000)<0,0,IF(D13>=100000,100000,D13)+IF(E14-D14>=100000,100000,E14-D14)-100000) -> 0 | G16: 軽判給与調整控除 | H16: =IF((IF(H13>=100000,100000,H13)+IF(I14-H14>=100000,100000,I14-H14)-100000)<0,0,IF(H13>=100000,100000,H13)+IF(I14-H14>=100000,100000,I14-H14)-100000) -> 0 | K16: 軽判給与調整控除 | L16: =IF((IF(L13>=100000,100000,L13)+IF(M14-L14>=100000,100000,M14-L14)-100000)<0,0,IF(L13>=100000,100000,L13)+IF(M14-L14>=100000,100000,M14-L14)-100000) -> 0 | O16: 軽判給与調整控除 | P16: =IF((IF(P13>=100000,100000,P13)+IF(Q14-P14>=100000,100000,Q14-P14)-100000)<0,0,IF(P13>=100000,100000,P13)+IF(Q14-P14>=100000,100000,Q14-P14)-100000) -> 0 | S16: 軽判給与調整控除 | T16: =IF((IF(T13>=100000,100000,T13)+IF(U14-T14>=100000,100000,U14-T14)-100000)<0,0,IF(T13>=100000,100000,T13)+IF(U14-T14>=100000,100000,U14-T14)-100000) -> 0
A17: その他の所得 | C17: 軽判給与所得 | D17: =IF(B12-550000<=0,0,1) -> 0 | G17: 軽判給与所得 | H17: =IF(F12-550000<=0,0,1) -> 0 | K17: 軽判給与所得 | L17: =IF(J12-550000<=0,0,1) -> 0 | O17: 軽判給与所得 | P17: =IF(N12-550000<=0,0,1) -> 0 | S17: 軽判給与所得 | T17: =IF(R12-550000<=0,0,1) -> 0
C18: 非失該当 | D18: FALSE | G18: 非失該当 | H18: FALSE | K18: 非失該当 | L18: FALSE | O18: 非失該当 | P18: FALSE | S18: 非失該当 | T18: FALSE
A19: 総所得 | B19: =IF(SUM(E12:E17)<0,0,SUM(E12:E17)) -> 0 | F19: =IF(SUM(I12:I17)<0,0,SUM(I12:I17)) -> 0 | J19: =IF(SUM(M12:M17)<0,0,SUM(M12:M17)) -> 0 | N19: =IF(SUM(Q12:Q17)<0,0,SUM(Q12:Q17)) -> 0 | R19: =IF(SUM(U12:U17)<0,0,SUM(U12:U17)) -> 0
A20: 専従控除額
A21: 軽減判定所得 | B21: =IF(D13-D16+E14-D14+E15+E16+E17+B20<0,0,D13-D16+E14-D14+E15+E16+E17+B20) -> 0 | F21: =IF(H13-H16+I14-H14+I15+I16+I17+F20<0,0,H13-H16+I14-H14+I15+I16+I17+F20) -> 0 | J21: =IF(L13-L16+M14-L14+M15+M16+M17+J20<0,0,L13-L16+M14-L14+M15+M16+M17+J20) -> 0 | N21: =IF(P13-P16+Q14-P14+Q15+Q16+Q17+N20<0,0,P13-P16+Q14-P14+Q15+Q16+Q17+N20) -> 0 | R21: =IF(T13-T16+U14-T14+U15+U16+U17+R20<0,0,T13-T16+U14-T14+U15+U16+U17+R20) -> 0
A22: 賦課標準所得 | B22: =IF(B19<=430000,0,IF(A4>=6,B19-430000,ROUNDDOWN((B19-430000),-3))) -> 0 | F22: =IF(F19<=430000,0,IF(A4>=6,F19-430000,ROUNDDOWN((F19-430000),-3))) -> 0 | J22: =IF(J19<=430000,0,IF(A4>=6,J19-430000,ROUNDDOWN((J19-430000),-3))) -> 0 | N22: =IF(N19<=430000,0,IF(A4>=6,N19-430000,ROUNDDOWN((N19-430000),-3))) -> 0 | R22: =IF(R19<=430000,0,IF(A4>=6,R19-430000,ROUNDDOWN((R19-430000),-3))) -> 0
A25: 世帯人数 | B25: =D25+H25+L25+P25+T25 -> 0 | C25: カウント | D25: =IF(AND(D6=FALSE,D7=FALSE,D8=FALSE,D9=FALSE,D10=FALSE),0,1) -> 0 | G25: カウント | H25: =IF(AND(H6=FALSE,H7=FALSE,H8=FALSE,H9=FALSE,H10=FALSE),0,1) -> 0 | K25: カウント | L25: =IF(AND(L6=FALSE,L7=FALSE,L8=FALSE,L9=FALSE,L10=FALSE),0,1) -> 0 | O25: カウント | P25: =IF(AND(P6=FALSE,P7=FALSE,P8=FALSE,P9=FALSE,P10=FALSE),0,1) -> 0 | S25: カウント | T25: =IF(AND(T6=FALSE,T7=FALSE,T8=FALSE,T9=FALSE,T10=FALSE),0,1) -> 0
A26: 世帯総所得 | B26: =B19+F19+J19+N19+R19 -> 0 | N26: 0 | R26: 3
A27: 世帯軽減判定所得 | B27: =B21+F21+J21+N21+R21 -> 0
A28: 世帯賦課標準所得 | B28: =B22+F22+J22+N22+R22 -> 0

Sheet 加入情報入力用 (hidden)
A1: 加入情報
A3: 過年度試算 | B3: 次年度試算
A4: ↑現年度試算はチェック不要↑
A5: 年度 | B5: =IF(世帯情報入力用!A4="","",世帯情報入力用!A4) -> 8
A6: 開始月 | B6: 4
A7: 終了月 | B7: 3
A8: 手続き月 | C8: =IF(B17=TRUE,"←入力不要","") -> 
A10: 保険料額 | B10: =IF(OR(B6="",B7=""),"",ROUNDDOWN(世帯賦課条件!B36*(B21-B20+1)/12,0)) -> 0
A11: 期割回数 | B11: =IF(AND(B16=FALSE,B17=FALSE,B8=""),"",IF(B16=TRUE,1,IF(B17=TRUE,10,VLOOKUP(B8,$A$22:$C$33,3,0)))) -> 
A13: 今年度75歳
A14: =IF(B18=TRUE,"誕生日月","") ->  | C14: =IF(AND(B18=TRUE,B14=""),"←誕生日月入力","") -> 
A16: 過年度試算 | B16: FALSE
A17: 次年度試算 | B17: FALSE
A18: 75歳 誕生日 | B18: FALSE
A19: 誕生日月前月 | B19: =IF(B14="","",IF(B14=1,12,B14-1)) -> 
A20: 月分 開始値 | B20: =VLOOKUP(B6,$A$22:$B$33,2,0) -> 1
A21: 月分 終了値 | B21: =VLOOKUP(B7,$A$22:$B$33,2,0) -> 12
A22: 4 | B22: 1 | C22: 10
A23: 5 | B23: 2 | C23: 10
A24: 6 | B24: 3 | C24: 9
A25: 7 | B25: 4 | C25: 8
A26: 8 | B26: 5 | C26: 7
A27: 9 | B27: 6 | C27: 6
A28: 10 | B28: 7 | C28: 5
A29: 11 | B29: 8 | C29: 4
A30: 12 | B30: 9 | C30: 3
A31: 1 | B31: 10 | C31: 2
A32: 2 | B32: 11 | C32: 1
A33: 3 | B33: 12 | C33: 1

Sheet 試算結果
R1: =TODAY() -> 2026-04-21
A2: 保険料試算
A4: 令和 | C4: =IF(加入情報入力用!B5="","",加入情報入力用!B5) -> 8 | D4: 年度 | F4: (令和 | H4: =IF(加入情報入力用!B5="","",加入情報入力用!B5) -> 8 | I4: 年 4 月～令和 | N4: =IF(加入情報入力用!B5="","",加入情報入力用!B5+1) -> 9 | O4: 年 3 月)
B6: =IF(加入情報入力用!B10="","",加入情報入力用!B10) -> 0 | F6: 円／年 | I6: =IF(AND(加入情報入力用!B6="",加入情報入力用!B7=""),"( 月分～ 月分)",IF(加入情報入力用!B6=加入情報入力用!B7,"( "&加入情報入力用!B6&" 月分)","( "&加入情報入力用!B6&" 月分～ "&加入情報入力用!B7&" 月分)")) -> ( 4 月分～ 3 月分)
B8: =IF(加入情報入力用!B10="","",加入情報入力用!B10/(加入情報入力用!B21-加入情報入力用!B20+1)) -> 0 | F8: 円／月
B10: 月支払額
C11: 約 | D11: =IF(加入情報入力用!B10="","",加入情報入力用!B10/加入情報入力用!B11) ->  | G11: 円／月 | J11: （ | K11: =IF(加入情報入力用!B11="","",加入情報入力用!B11) ->  | L11: 回）
B14: =IF(加入情報入力用!B5=""," ※保険料の決定通知書は、翌月の 月中旬に発送します。",IF(加入情報入力用!B17=TRUE," ※保険料の決定通知書は、"&加入情報入力用!B5&" 年 6 月中旬に発送します。",IF(加入情報入力用!B16=TRUE," ※保険料の決定通知書は、翌月の "&加入情報入力用!B8+1&" 月中旬に発送します。",IF(加入情報入力用!B8=4," ※保険料の決定通知書は、翌々月の "&6&" 月中旬に発送します。",IF(加入情報入力用!B8=12," ※保険料の決定通知書は、翌月の "&1&" 月中旬に発送します。"," ※保険料の決定通知書は、翌月の "&加入情報入力用!B8+1&" 月中旬に発送します。"))))) -> ※保険料の決定通知書は、翌月の 1 月中旬に発送します。
B15: =IF(加入情報入力用!B16=TRUE,IF(加入情報入力用!B5=""," お支払いは、原則通知書発送月の 月末までの一括払いです。",IF(加入情報入力用!B8=12," お支払いは、原則通知書発送月の "&1&" 月末までの一括払いです。"," お支払いは、原則通知書発送月の "&加入情報入力用!B8+1&" 月末までの一括払いです。")),IF(加入情報入力用!B5=""," お支払いについては、原則通知書発送月の 月から"," お支払いについては、原則通知書発送月の "&IF(加入情報入力用!B17=TRUE," 6 ",IF(加入情報入力用!B8=4," 6 ",IF(加入情報入力用!B8=12," 1 ",加入情報入力用!B8+1)))&" 月から")) -> お支払いについては、原則通知書発送月の 1 月から
B16: =IF(加入情報入力用!B16=TRUE,"",IF(加入情報入力用!B18=TRUE,IF(加入情報入力用!B5=""," 誕生日の前月の 月までの分割です。"," 誕生日の前月の "&加入情報入力用!B19&" 月までの分割です。" ),IF(加入情報入力用!B5=""," 年度末の 年 3 月までの分割です。"," 年度末の "&加入情報入力用!B5+1&" 年 3 月までの分割です。" ))) -> 年度末の 9 年 3 月までの分割です。
B17: ※納付困難な場合は、決定通知書を受取っていただいてから、 本庁、または行政サービスセンター等でご相談ください。
B21: ※今回の結果は概算であり保険料の決定額ではありません。
B23: ※本シートでは1年間（12か月分）の保険料を計算しておりますが、
B24: 実際に通知される保険料は、加入月数によって変動します。
B26: ※国民健康保険は、決定料金を年度末（3月末）までの分割払いと
B27: となっており、社会保険のような月額払いとは異なります。

Sheet 世帯賦課条件 (hidden)
A1: 賦課明細
A3: 給与所得者等 人数 | C3: =世帯情報入力用!D11+世帯情報入力用!H11+世帯情報入力用!L11+世帯情報入力用!P11+世帯情報入力用!T11 -> 0
A4: 世帯被保険者数 | C4: =世帯情報入力用!B25 -> 0
B6: 7割軽減 | C6: 5割軽減 | D6: 2割軽減 | H6: 当該世帯軽減率
A7: 軽減判定額 | B7: =IF(C3=0,430000,430000+((C3-1)*100000)) -> 430000 | C7: =IF(C3=0,430000+(試算年度条件!B4*世帯賦課条件!C4),430000+(試算年度条件!B4*世帯賦課条件!C4)+((C3-1)*100000)) -> 430000 | D7: =IF(C3=0,430000+(試算年度条件!B5*世帯賦課条件!C4),430000+(試算年度条件!B5*世帯賦課条件!C4)+((C3-1)*100000)) -> 430000 | H7: =IF(世帯情報入力用!A4="","",IF(I7=0.3,"7割軽減",IF(I7=0.5,"5割軽減",IF(I7=0.8,"2割軽減","軽減なし")))) -> 7割軽減 | I7: =IF(世帯情報入力用!B27<=世帯賦課条件!B7,0.3,IF(世帯情報入力用!B27<=世帯賦課条件!C7,0.5,IF(世帯情報入力用!B27<=世帯賦課条件!D7,0.8,1))) -> 0.3
B9: 所得割率 | C9: 均等割額 | D9: 平等割額 | E9: 賦課限度額
A10: 医療 | B10: =試算年度条件!B6 -> 0.095 | C10: =試算年度条件!B7 -> 34990 | D10: =試算年度条件!B8 -> 33908 | E10: =試算年度条件!B9 -> 660000
A11: 支援 | B11: =試算年度条件!B10 -> 0.0306 | C11: =試算年度条件!B11 -> 11191 | D11: =試算年度条件!B12 -> 10845 | E11: =試算年度条件!B13 -> 260000
A12: 介護 | B12: =試算年度条件!B14 -> 0.026 | C12: =試算年度条件!B15 -> 18682 | D12: =試算年度条件!B16 -> 0 | E12: =試算年度条件!B17 -> 170000
A13: 子ども | B13: =試算年度条件!B18 -> 0.0028 | C13: =試算年度条件!B19 -> 1841 | D13: =試算年度条件!B20 -> 0 | E13: =試算年度条件!B21 -> 30000
B15: 世帯主 | C15: 世帯員1 | D15: 世帯員2 | E15: 世帯員3 | F15: 世帯員4
A16: 総所得金額 | B16: =IF(世帯情報入力用!B19=0,"",世帯情報入力用!B19) ->  | C16: =IF(世帯情報入力用!F19=0,"",世帯情報入力用!F19) ->  | D16: =IF(世帯情報入力用!J19=0,"",世帯情報入力用!J19) ->  | E16: =IF(世帯情報入力用!N19=0,"",世帯情報入力用!N19) ->  | F16: =IF(世帯情報入力用!R19=0,"",世帯情報入力用!R19) -> 
A17: 賦課標準所得金額 | B17: =IF(世帯情報入力用!B22=0,"",世帯情報入力用!B22) ->  | C17: =IF(世帯情報入力用!F22=0,"",世帯情報入力用!F22) ->  | D17: =IF(世帯情報入力用!J22=0,"",世帯情報入力用!J22) ->  | E17: =IF(世帯情報入力用!N22=0,"",世帯情報入力用!N22) ->  | F17: =IF(世帯情報入力用!R22=0,"",世帯情報入力用!R22) -> 
A18: 医療 所得割額 | B18: =ROUNDDOWN(世帯情報入力用!B22*世帯賦課条件!B10,0) -> 0 | C18: =ROUNDDOWN(世帯情報入力用!F22*世帯賦課条件!B10,0) -> 0 | D18: =ROUNDDOWN(世帯情報入力用!J22*世帯賦課条件!B10,0) -> 0 | E18: =ROUNDDOWN(世帯情報入力用!N22*世帯賦課条件!B10,0) -> 0 | F18: =ROUNDDOWN(世帯情報入力用!R22*世帯賦課条件!B10,0) -> 0
A19: 医療 均等割額 | B19: =IF(AND(世帯情報入力用!D25=1,世帯情報入力用!D6=TRUE),ROUNDDOWN(ROUNDDOWN(世帯賦課条件!C10*世帯賦課条件!I7,0)/2,0),IF(AND(世帯情報入力用!D25=1,世帯情報入力用!D6=FALSE),ROUNDDOWN(世帯賦課条件!C10*世帯賦課条件!I7,0),0)) -> 0 | C19: =IF(AND(世帯情報入力用!H25=1,世帯情報入力用!H6=TRUE),ROUNDDOWN(ROUNDDOWN(世帯賦課条件!C10*世帯賦課条件!I7,0)/2,0),IF(AND(世帯情報入力用!H25=1,世帯情報入力用!H6=FALSE),ROUNDDOWN(世帯賦課条件!C10*世帯賦課条件!I7,0),0)) -> 0 | D19: =IF(AND(世帯情報入力用!L25=1,世帯情報入力用!L6=TRUE),ROUNDDOWN(ROUNDDOWN(世帯賦課条件!C10*世帯賦課条件!I7,0)/2,0),IF(AND(世帯情報入力用!L25=1,世帯情報入力用!L6=FALSE),ROUNDDOWN(世帯賦課条件!C10*世帯賦課条件!I7,0),0)) -> 0 | E19: =IF(AND(世帯情報入力用!P25=1,世帯情報入力用!P6=TRUE),ROUNDDOWN(ROUNDDOWN(世帯賦課条件!C10*世帯賦課条件!I7,0)/2,0),IF(AND(世帯情報入力用!P25=1,世帯情報入力用!P6=FALSE),ROUNDDOWN(世帯賦課条件!C10*世帯賦課条件!I7,0),0)) -> 0 | F19: =IF(AND(世帯情報入力用!T25=1,世帯情報入力用!T6=TRUE),ROUNDDOWN(ROUNDDOWN(世帯賦課条件!C10*世帯賦課条件!I7,0)/2,0),IF(AND(世帯情報入力用!T25=1,世帯情報入力用!T6=FALSE),ROUNDDOWN(世帯賦課条件!C10*世帯賦課条件!I7,0),0)) -> 0
A20: 医療 平等割額 | B20: =IF(世帯情報入力用!D25+世帯情報入力用!H25+世帯情報入力用!L25+世帯情報入力用!P25+世帯情報入力用!T25>0,ROUNDDOWN(D10*I7,0),0) -> 0
A21: 支援 所得割額 | B21: =ROUNDDOWN(世帯情報入力用!B22*世帯賦課条件!B11,0) -> 0 | C21: =ROUNDDOWN(世帯情報入力用!F22*世帯賦課条件!B11,0) -> 0 | D21: =ROUNDDOWN(世帯情報入力用!J22*世帯賦課条件!B11,0) -> 0 | E21: =ROUNDDOWN(世帯情報入力用!N22*世帯賦課条件!B11,0) -> 0 | F21: =ROUNDDOWN(世帯情報入力用!R22*世帯賦課条件!B11,0) -> 0
A22: 支援 均等割額 | B22: =IF(AND(世帯情報入力用!D25=1,世帯情報入力用!D6=TRUE),ROUNDDOWN(ROUNDDOWN(世帯賦課条件!C11*世帯賦課条件!I7,0)/2,0),IF(AND(世帯情報入力用!D25=1,世帯情報入力用!D6=FALSE),ROUNDDOWN(世帯賦課条件!C11*世帯賦課条件!I7,0),0)) -> 0 | C22: =IF(AND(世帯情報入力用!H25=1,世帯情報入力用!H6=TRUE),ROUNDDOWN(ROUNDDOWN(世帯賦課条件!C11*世帯賦課条件!I7,0)/2,0),IF(AND(世帯情報入力用!H25=1,世帯情報入力用!H6=FALSE),ROUNDDOWN(世帯賦課条件!C11*世帯賦課条件!I7,0),0)) -> 0 | D22: =IF(AND(世帯情報入力用!L25=1,世帯情報入力用!L6=TRUE),ROUNDDOWN(ROUNDDOWN(世帯賦課条件!C11*世帯賦課条件!I7,0)/2,0),IF(AND(世帯情報入力用!L25=1,世帯情報入力用!L6=FALSE),ROUNDDOWN(世帯賦課条件!C11*世帯賦課条件!I7,0),0)) -> 0 | E22: =IF(AND(世帯情報入力用!P25=1,世帯情報入力用!P6=TRUE),ROUNDDOWN(ROUNDDOWN(世帯賦課条件!C11*世帯賦課条件!I7,0)/2,0),IF(AND(世帯情報入力用!P25=1,世帯情報入力用!P6=FALSE),ROUNDDOWN(世帯賦課条件!C11*世帯賦課条件!I7,0),0)) -> 0 | F22: =IF(AND(世帯情報入力用!T25=1,世帯情報入力用!T6=TRUE),ROUNDDOWN(ROUNDDOWN(世帯賦課条件!C11*世帯賦課条件!I7,0)/2,0),IF(AND(世帯情報入力用!T25=1,世帯情報入力用!T6=FALSE),ROUNDDOWN(世帯賦課条件!C11*世帯賦課条件!I7,0),0)) -> 0
A23: 支援 平等割額 | B23: =IF(世帯情報入力用!D25+世帯情報入力用!H25+世帯情報入力用!L25+世帯情報入力用!P25+世帯情報入力用!T25>0,ROUNDDOWN(D11*I7,0),0) -> 0
A24: 介護 所得割額 | B24: =IF(世帯情報入力用!D9=TRUE,ROUNDDOWN(世帯情報入力用!B22*世帯賦課条件!B12,0),0) -> 0 | C24: =IF(世帯情報入力用!H9=TRUE,ROUNDDOWN(世帯情報入力用!F22*世帯賦課条件!B12,0),0) -> 0 | D24: =IF(世帯情報入力用!L9=TRUE,ROUNDDOWN(世帯情報入力用!J22*世帯賦課条件!B12,0),0) -> 0 | E24: =IF(世帯情報入力用!P9=TRUE,ROUNDDOWN(世帯情報入力用!N22*世帯賦課条件!B12,0),0) -> 0 | F24: =IF(世帯情報入力用!T9=TRUE,ROUNDDOWN(世帯情報入力用!R22*世帯賦課条件!B12,0),0) -> 0
A25: 介護 均等割額 | B25: =IF(AND(世帯情報入力用!D9=TRUE,世帯情報入力用!D25=1),ROUNDDOWN(世帯賦課条件!C12*世帯賦課条件!I7,0),0) -> 0 | C25: =IF(AND(世帯情報入力用!H9=TRUE,世帯情報入力用!H25=1),ROUNDDOWN(世帯賦課条件!C12*世帯賦課条件!I7,0),0) -> 0 | D25: =IF(AND(世帯情報入力用!L9=TRUE,世帯情報入力用!L25=1),ROUNDDOWN(世帯賦課条件!C12*世帯賦課条件!I7,0),0) -> 0 | E25: =IF(AND(世帯情報入力用!P9=TRUE,世帯情報入力用!P25=1),ROUNDDOWN(世帯賦課条件!C12*世帯賦課条件!I7,0),0) -> 0 | F25: =IF(AND(世帯情報入力用!T9=TRUE,世帯情報入力用!T25=1),ROUNDDOWN(世帯賦課条件!C12*世帯賦課条件!I7,0),0) -> 0
A26: 介護 平等割額 | B26: =IF(AND(OR(世帯情報入力用!D9=TRUE,世帯情報入力用!H9=TRUE,世帯情報入力用!L9=TRUE,世帯情報入力用!P9=TRUE,世帯情報入力用!T9=TRUE),(世帯情報入力用!D25+世帯情報入力用!H25+世帯情報入力用!L25+世帯情報入力用!P25+世帯情報入力用!T25>0)),ROUNDDOWN(世帯賦課条件!D12*世帯賦課条件!I7,0),0) -> 0
A27: 子ども 所得割額 | B27: =ROUNDDOWN(世帯情報入力用!B22*世帯賦課条件!B13,0) -> 0 | C27: =ROUNDDOWN(世帯情報入力用!F22*世帯賦課条件!B13,0) -> 0 | D27: =ROUNDDOWN(世帯情報入力用!J22*世帯賦課条件!B13,0) -> 0 | E27: =ROUNDDOWN(世帯情報入力用!N22*世帯賦課条件!B13,0) -> 0 | F27: =ROUNDDOWN(世帯情報入力用!R22*世帯賦課条件!B13,0) -> 0
A28: 子ども 均等割額 | B28: =IF(AND(世帯情報入力用!D5=TRUE,世帯情報入力用!D25=1),ROUNDDOWN(世帯賦課条件!C13*世帯賦課条件!I7,0),0) -> 0 | C28: =IF(AND(世帯情報入力用!H5=TRUE,世帯情報入力用!H25=1),ROUNDDOWN(世帯賦課条件!C13*世帯賦課条件!I7,0),0) -> 0 | D28: =IF(AND(世帯情報入力用!L5=TRUE,世帯情報入力用!L25=1),ROUNDDOWN(世帯賦課条件!C13*世帯賦課条件!I7,0),0) -> 0 | E28: =IF(AND(世帯情報入力用!P5=TRUE,世帯情報入力用!P25=1),ROUNDDOWN(世帯賦課条件!C13*世帯賦課条件!I7,0),0) -> 0 | F28: =IF(AND(世帯情報入力用!T5=TRUE,世帯情報入力用!T25=1),ROUNDDOWN(世帯賦課条件!C13*世帯賦課条件!I7,0),0) -> 0
A29: 子ども 平等割額 | B29: =IF(AND(OR(世帯情報入力用!D5=TRUE,世帯情報入力用!H5=TRUE,世帯情報入力用!L5=TRUE,世帯情報入力用!P5=TRUE,世帯情報入力用!T5=TRUE,),(世帯情報入力用!D25+世帯情報入力用!H25+世帯情報入力用!L25+世帯情報入力用!P25+世帯情報入力用!T25>0)),ROUNDDOWN(世帯賦課条件!D13*世帯賦課条件!I7,0),0) -> 0
A31: 世帯医療分 | B31: =IF(SUM(B18:F20)>=E10,E10,SUM(B18:F20)) -> 0
A32: 世帯支援分 | B32: =IF(SUM(B21:F23)>=E11,E11,SUM(B21:F23)) -> 0
A33: 世帯介護分 | B33: =IF(SUM(B24:F26)>=E12,E12,SUM(B24:F26)) -> 0
A34: 世帯子ども分 | B34: =IF(SUM(B27:F29)>=E13,E13,SUM(B27:F29)) -> 0
A36: 世帯保険料額 | B36: =SUM(B31:B34) -> 0
A37: 世帯月保険料額 | B37: =B36/12 -> 0

Sheet 試算年度条件 (hidden)
A1: =世帯情報入力用!A4 -> 8
A3: 試算年度条件
A4: 5割 | B4: =VLOOKUP(世帯情報入力用!A4,'各年度 料率'!$A$2:$S$9,2,0) -> 310000
A5: 2割 | B5: =VLOOKUP(世帯情報入力用!A4,'各年度 料率'!$A$2:$S$9,3,0) -> 570000
A6: 医療 所得割率 | B6: =VLOOKUP(世帯情報入力用!A4,'各年度 料率'!$A$2:$S$9,4,0) -> 0.095
A7: 医療 均等割額 | B7: =VLOOKUP(世帯情報入力用!A4,'各年度 料率'!$A$2:$S$9,5,0) -> 34990
A8: 医療 平等割額 | B8: =VLOOKUP(世帯情報入力用!A4,'各年度 料率'!$A$2:$S$9,6,0) -> 33908
A9: 医療 限度額 | B9: =VLOOKUP(世帯情報入力用!A4,'各年度 料率'!$A$2:$S$9,7,0) -> 660000
A10: 支援 所得割率 | B10: =VLOOKUP(世帯情報入力用!A4,'各年度 料率'!$A$2:$S$9,8,0) -> 0.0306
A11: 支援 均等割額 | B11: =VLOOKUP(世帯情報入力用!A4,'各年度 料率'!$A$2:$S$9,9,0) -> 11191
A12: 支援 平等割額 | B12: =VLOOKUP(世帯情報入力用!A4,'各年度 料率'!$A$2:$S$9,10,0) -> 10845
A13: 支援 限度額 | B13: =VLOOKUP(世帯情報入力用!A4,'各年度 料率'!$A$2:$S$9,11,0) -> 260000
A14: 介護 所得割率 | B14: =VLOOKUP(世帯情報入力用!A4,'各年度 料率'!$A$2:$S$9,12,0) -> 0.026
A15: 介護 均等割額 | B15: =VLOOKUP(世帯情報入力用!A4,'各年度 料率'!$A$2:$S$9,13,0) -> 18682
A16: 介護 平等割額 | B16: =VLOOKUP(世帯情報入力用!A4,'各年度 料率'!$A$2:$S$9,14,0) -> 0
A17: 介護 限度額 | B17: =VLOOKUP(世帯情報入力用!A4,'各年度 料率'!$A$2:$S$9,15,0) -> 170000
A18: 子ども 所得割率 | B18: =VLOOKUP(世帯情報入力用!A4,'各年度 料率'!$A$2:$S$9,16,0) -> 0.0028
A19: 子ども 均等割額 | B19: =VLOOKUP(世帯情報入力用!A4,'各年度 料率'!$A$2:$S$9,17,0) -> 1841
A20: 子ども 平等割額 | B20: =VLOOKUP(世帯情報入力用!A4,'各年度 料率'!$A$2:$S$9,18,0) -> 0
A21: 子ども 限度額 | B21: =VLOOKUP(世帯情報入力用!A4,'各年度 料率'!$A$2:$S$9,19,0) -> 30000

Sheet 各年度 料率 (hidden)
A1: 年度 | B1: 5割 | C1: 2割 | D1: 医療 所得割率 | E1: 医療 均等割額 | F1: 医療 平等割額 | G1: 医療 限度額 | H1: 支援 所得割率 | I1: 支援 均等割額 | J1: 支援 平等割額 | K1: 支援 限度額 | L1: 介護 所得割率 | M1: 介護 均等割額 | N1: 介護 平等割額 | O1: 介護 限度額 | P1: 子ども 所得割率 | Q1: 子ども 均等割額 | R1: 子ども 平等割額 | S1: 子ども 限度額
A2: 3 | B2: 285000 | C2: 520000 | D2: 0.0848 | E2: 30157 | F2: 31368 | G2: 630000 | H2: 0.0273 | I2: 9478 | J2: 9858 | K2: 190000 | L2: 0.0247 | M2: 18213 | N2: 0 | O2: 170000
A3: 4 | B3: 285000 | C3: 520000 | D3: 0.0871 | E3: 31854 | F3: 32105 | G3: 630000 | H3: 0.0266 | I3: 9426 | J3: 9500 | K3: 190000 | L3: 0.0248 | M3: 18306 | N3: 0 | O3: 170000
A4: 5 | B4: 290000 | C4: 535000 | D4: 0.0886 | E4: 32948 | F4: 32750 | G4: 650000 | H4: 0.0276 | I4: 9945 | J4: 9886 | K4: 200000 | L4: 0.0261 | M4: 19552 | N4: 0 | O4: 170000
A5: 6 | B5: 295000 | C5: 545000 | D5: 0.0956 | E5: 35040 | F5: 34803 | G5: 650000 | H5: 0.0312 | I5: 11167 | J5: 11091 | K5: 220000 | L5: 0.0264 | M5: 19389 | N5: 0 | O5: 170000
A6: 7 | B6: 305000 | C6: 560000 | D6: 0.093 | E6: 34424 | F6: 33574 | G6: 650000 | H6: 0.0302 | I6: 11034 | J6: 10761 | K6: 240000 | L6: 0.0256 | M6: 18784 | N6: 0 | O6: 170000
A7: 8 | B7: 310000 | C7: 570000 | D7: 0.095 | E7: 34990 | F7: 33908 | G7: 660000 | H7: 0.0306 | I7: 11191 | J7: 10845 | K7: 260000 | L7: 0.026 | M7: 18682 | N7: 0 | O7: 170000 | P7: 0.0028 | Q7: 1841 | R7: 0 | S7: 30000
A8: 9
A9: 10
